bitfinex/quotes_BTCUSD_20241216
["timestamp","ask_amount","ask_price","bid_price","bid_amount"]
[1734384615090,0.00022955,105780.0,105770.0,0.70573247]
[1734384615501,0.00022955,105780.0,105770.0,0.63160966]
[1734384616126,0.00022955,105780.0,105770.0,0.70573247]
[1734384617600,0.00022955,105780.0,105770.0,0.63160966]
[1734384617812,0.00022955,105780.0,105770.0,0.48336404]
[1734384618019,0.00022955,105780.0,105770.0,0.49839202]
[1734384618440,0.00022955,105780.0,105770.0,0.29833202]
[1734384618677,0.00022955,105780.0,105770.0,0.74993602]
[1734384619093,0.00022955,105780.0,105770.0,0.72993602]
[1734384619309,0.00022955,105780.0,105770.0,0.80405883]
[1734384619532,0.00022955,105780.0,105770.0,0.72993602]
[1734384619738,0.00022955,105780.0,105770.0,0.80405883]
[1734384622857,0.00022955,105780.0,105770.0,0.67397243]
[1734384623063,0.00022955,105780.0,105770.0,0.6581114]
[1734384623511,0.0773728,105790.0,105770.0,0.6581114]
[1734384623772,0.0001728,105790.0,105780.0,1.45082358]
[1734384623982,0.0001728,105790.0,105780.0,1.20017535]
[1734384624210,0.1252863,105800.0,105780.0,1.15434535]
[1734384624464,0.219577,105800.0,105790.0,0.377736]
[1734384624724,0.219577,105800.0,105790.0,0.14824562]
[1734384624991,0.219577,105800.0,105790.0,0.29824562]
[1734384625243,0.219577,105800.0,105790.0,0.22412281]
[1734384625480,0.219577,105800.0,105790.0,0.29824562]
[1734384631005,0.173677,105800.0,105790.0,0.29824562]
[1734384631240,0.173677,105800.0,105790.0,0.3313245]
[1734384631538,8.63e-05,105800.0,105790.0,1.07440231]
[1734384631752,0.50604016,105820.0,105800.0,0.15]
[1734384631753,0.0819864,105820.0,105800.0,0.15]
[1734384631963,0.1762771,105820.0,105800.0,1.46791872]
[1734384632174,0.1762771,105820.0,105810.0,0.53452062]
[1734384633471,0.17684491,105820.0,105810.0,0.53452062]
[1734384637163,0.09494491,105820.0,105810.0,0.53452062]
[1734384638298,0.09494491,105820.0,105810.0,0.56658613]
[1734384638961,0.09494491,105820.0,105810.0,0.33031113]
[1734384639168,0.17434491,105820.0,105810.0,0.33031113]
[1734384640274,0.17434491,105820.0,105810.0,0.18031113]
[1734384642433,0.17434491,105820.0,105810.0,0.33031113]
[1734384645683,0.16984697,105820.0,105810.0,0.33031113]
[1734384650091,0.16984697,105820.0,105810.0,0.33039743]
[1734384650315,0.17001957,105820.0,105810.0,0.33039743]
[1734384653319,0.17001957,105820.0,105810.0,0.18215181]
[1734384653531,0.17001957,105820.0,105810.0,0.25627462]
[1734384653750,0.17001957,105820.0,105810.0,0.22420911]
[1734384653967,0.30067536,105820.0,105810.0,0.07420911]
[1734384654220,0.42705905,105820.0,105810.0,0.22420911]
[1734384657359,0.59557064,105820.0,105810.0,0.22420911]
[1734384660598,0.59557064,105820.0,105810.0,0.29833192]
[1734384660827,0.59557064,105820.0,105810.0,0.22420911]
[1734384663465,0.90038539,105820.0,105810.0,0.07420911]
[1734384663697,0.90038539,105820.0,105810.0,0.22420911]
[1734384663921,1.3161296,105820.0,105810.0,0.22420911]
[1734384664833,1.3161296,105820.0,105810.0,0.07412281]
[1734384664834,0.92708389,105820.0,105810.0,0.07412281]
[1734384665037,1.09559548,105820.0,105810.0,0.07412281]
[1734384666110,1.09570463,105820.0,105810.0,0.07412281]
[1734384666569,0.0761,105810.0,105800.0,0.07412281]
[1734384666774,0.0785,105800.0,105790.0,0.02463838]
[1734384666998,0.1727907,105800.0,105790.0,0.02463838]
[1734384669629,0.1727907,105800.0,105790.0,0.322884]
[1734384671740,0.2218907,105800.0,105790.0,0.322884]
[1734384673663,0.1727907,105800.0,105790.0,0.322884]
[1734384674109,0.0942907,105800.0,105790.0,0.90070081]
[1734384674327,0.0942907,105800.0,105790.0,0.72940078]
[1734384674544,0.0942907,105800.0,105790.0,0.38274638]
[1734384674999,0.0942907,105800.0,105790.0,0.530992]
[1734384677471,0.0942907,105800.0,105790.0,0.322884]
[1734384677750,0.0942907,105800.0,105790.0,0.476821]
[1734384682654,0.0761,105810.0,105790.0,0.63196978]
[1734384682873,0.0942907,105810.0,105800.0,0.83857743]
[1734384683088,0.0942907,105810.0,105800.0,0.63322662]
[1734384683309,0.0942907,105810.0,105800.0,0.55758862]
[1734384683983,0.0944633,105810.0,105800.0,0.55758862]
[1734384687284,0.0944633,105810.0,105800.0,0.44946529]
[1734384688857,0.0944633,105810.0,105800.0,0.2642451]
[1734384689078,0.1776633,105810.0,105800.0,0.2642451]
[1734384690379,0.1776633,105810.0,105800.0,0.19012229]
[1734384690614,0.1776633,105810.0,105790.0,0.17463838]
[1734384690615,0.2244633,105810.0,105790.0,0.17463838]
[1734384690830,0.1773907,105800.0,105790.0,8.63e-05]
[1734384691053,0.26183425,105800.0,105790.0,8.63e-05]
[1734384691277,0.26183425,105800.0,105790.0,0.07420911]
[1734384691541,0.26183425,105800.0,105790.0,8.63e-05]
[1734384692265,0.38849958,105800.0,105790.0,8.63e-05]
[1734384692485,0.60508668,105800.0,105790.0,8.63e-05]
[1734384692679,0.0821,105780.0,105770.0,8.64e-05]
[1734384692921,0.55620416,105780.0,105770.0,8.64e-05]
[1734384693138,0.55620416,105780.0,105770.0,0.07420921]
[1734384693139,0.55620365,105780.0,105770.0,0.07420921]
[1734384693349,0.55620744,105780.0,105770.0,0.07420921]
[1734384693594,0.38740146,105780.0,105770.0,0.07420921]
[1734384693821,0.38740146,105780.0,105770.0,8.64e-05]
[1734384693822,1.10390744,105780.0,105770.0,8.64e-05]
[1734384694014,1.10390744,105780.0,105770.0,0.00014315]
[1734384694455,0.93501567,105780.0,105770.0,0.00014315]
[1734384694879,1.10382165,105780.0,105770.0,0.00014315]
[1734384695093,1.60390416,105780.0,105770.0,0.00014315]
[1734384695354,1.10390416,105780.0,105770.0,0.00014315]
[1734384695574,1.23039649,105780.0,105770.0,0.00014315]
[1734384695997,1.10390416,105780.0,105770.0,0.00014315]
[1734384696426,1.23026932,105780.0,105770.0,0.00014315]
[1734384697318,0.93509818,105780.0,105770.0,0.00014315]
[1734384697539,1.10353133,105780.0,105770.0,0.00014315]
[1734384698428,1.22979522,105780.0,105770.0,0.00014315]
[1734384698642,1.25446838,105780.0,105770.0,0.00014315]
[1734384699481,1.22898782,105780.0,105770.0,0.00014315]
[1734384699637,0.43444108,105780.0,105770.0,0.00014315]
[1734384702150,1.0043335,105780.0,105770.0,0.00014315]
[1734384702356,1.71163254,105780.0,105770.0,0.00014315]
[1734384702612,1.92200634,105780.0,105770.0,0.00014315]
[1734384702815,1.83788024,105780.0,105770.0,0.00014315]
[1734384702964,1.76798782,105780.0,105770.0,0.00014315]
[1734384703165,1.22898782,105780.0,105770.0,0.00014315]
[1734384703365,1.31305532,105780.0,105770.0,0.00014315]
[1734384703578,1.26798782,105780.0,105770.0,1.09392115]
[1734384704206,1.05737501,105780.0,105770.0,0.62178352]
[1734384705259,0.97327928,105780.0,105770.0,0.62178352]
[1734384705886,0.98681781,105780.0,105770.0,0.62178352]
[1734384706108,1.08037501,105780.0,105770.0,0.62178352]
[1734384706549,1.08034971,105780.0,105770.0,0.62178352]
[1734384707643,1.08034971,105780.0,105770.0,0.62186992]
[1734384708769,0.54134971,105780.0,105770.0,0.62186992]
[1734384710329,0.6253293,105780.0,105770.0,0.62186992]
[1734384710529,0.45716684,105780.0,105770.0,0.62186992]
[1734384712531,0.54134971,105780.0,105770.0,0.62186992]
[1734384713014,0.62528393,105780.0,105770.0,0.62186992]
[1734384713248,0.45712147,105780.0,105770.0,0.62186992]
[1734384713923,0.54134971,105780.0,105770.0,0.62186992]
[1734384714165,0.62545624,105780.0,105770.0,0.62186992]
[1734384717668,0.75128855,105780.0,105770.0,0.62186992]
[1734384719144,0.33096747,105780.0,105770.0,0.14966834]
[1734384719359,0.2472635,105780.0,105770.0,0.14966834]
[1734384719807,0.33111639,105780.0,105770.0,0.14966834]
[1734384720862,0.2472635,105780.0,105770.0,0.14966834]
[1734384722225,0.33111639,105780.0,105770.0,0.14966834]
[1734384722459,0.2242635,105780.0,105770.0,0.14966834]
[1734384724782,0.2472635,105780.0,105770.0,0.14966834]
[1734384725240,0.45689572,105780.0,105770.0,0.14966834]
[1734384725449,0.64596672,105780.0,105770.0,0.14966834]
[1734384725660,0.72981961,105780.0,105770.0,0.14966834]
[1734384726768,0.8136725,105780.0,105770.0,0.14966834]
[1734384726977,0.90784776,105780.0,105770.0,0.14966834]
[1734384727207,0.89014198,105780.0,105770.0,0.14966834]
[1734384727475,0.5863345,105780.0,105770.0,0.14966834]
[1734384729033,0.5,105740.0,105730.0,0.0812864]
[1734384729267,1.0942907,105740.0,105730.0,8.64e-05]
[1734384730368,1.17839384,105740.0,105730.0,8.64e-05]
[1734384731490,0.59623629,105740.0,105730.0,8.64e-05]
[1734384731719,0.539,105730.0,105720.0,0.00014741]
[1734384731939,0.47204021,105730.0,105720.0,0.00014741]
[1734384732159,0.80386849,105730.0,105720.0,0.00014741]
[1734384732381,0.24291006,105730.0,105720.0,0.00014741]
[1734384733262,0.45270365,105730.0,105720.0,0.00014741]
[1734384733473,0.24291006,105730.0,105720.0,0.00014741]
[1734384734125,0.5,105700.0,105690.0,0.12992448]
[1734384734365,0.5942907,105700.0,105690.0,0.12992448]
[1734384735404,0.5942907,105700.0,105690.0,0.1300949]
[1734384737322,0.67824294,105700.0,105690.0,0.0488949]
[1734384737537,0.67824294,105700.0,105690.0,0.00017042]
[1734384737971,0.8041713,105700.0,105690.0,0.00017042]
[1734384738418,0.3041713,105700.0,105690.0,0.00017042]
[1734384738848,0.3341713,105700.0,105690.0,0.00017042]
[1734384739079,0.41812354,105700.0,105690.0,0.00017042]
[1734384739283,0.62800414,105700.0,105690.0,0.00017042]
[1734384739509,0.50206504,105700.0,105690.0,0.00017042]
[1734384740588,0.52115769,105700.0,105690.0,0.00017042]
[1734384741473,0.85325321,105700.0,105690.0,0.00017042]
[1734384741673,1.39225321,105700.0,105690.0,0.00017042]
[1734384742106,0.94125321,105700.0,105690.0,0.00017042]
[1734384742323,0.64765769,105700.0,105690.0,0.00017042]
[1734384742531,0.77359679,105700.0,105690.0,0.00017042]
[1734384742758,0.64766843,105700.0,105690.0,0.00017042]
[1734384742980,0.67066843,105700.0,105690.0,0.00017042]
[1734384743234,0.76465543,105700.0,105690.0,0.00017042]
[1734384744708,0.95386943,105700.0,105690.0,0.00017042]
[1734384744912,0.93615321,105700.0,105690.0,0.00025682]
[1734384745133,1.12537621,105700.0,105680.0,0.00012125]
[1734384745336,0.70065971,105690.0,105680.0,0.00012125]
[1734384745552,0.84440312,105690.0,105680.0,0.00012125]
[1734384745779,0.84398073,105690.0,105680.0,0.00012125]
[1734384746409,0.664072,105690.0,105680.0,0.00012125]
[1734384746627,0.87347664,105690.0,105680.0,0.00012125]
[1734384746832,0.664072,105690.0,105680.0,0.00012125]
[1734384747276,0.87338897,105690.0,105680.0,0.00012125]
[1734384747488,0.79313967,105690.0,105680.0,0.00012125]
[1734384749193,0.5,105670.0,105660.0,0.11304583]
[1734384749406,0.5942907,105670.0,105650.0,0.24431255]
[1734384749632,0.0942907,105660.0,105650.0,0.24431255]
[1734384750290,0.0942907,105660.0,105650.0,0.13101798]
[1734384750933,0.0942907,105660.0,105650.0,0.13158628]
[1734384753556,0.0942907,105660.0,105650.0,1.14992396]
[1734384753764,0.5,105690.0,105670.0,0.0753]
[1734384753967,0.0942907,105680.0,105670.0,0.0753]
[1734384755242,0.0942907,105680.0,105660.0,0.2751]
[1734384756480,0.0942907,105680.0,105660.0,0.38839457]
[1734384756690,0.0942907,105680.0,105670.0,0.11329457]
[1734384756903,0.0942907,105680.0,105670.0,0.18859457]
[1734384757111,0.0942907,105680.0,105670.0,0.0753]
[1734384761610,0.0942907,105680.0,105660.0,0.2793]
[1734384767414,0.0944637,105680.0,105660.0,0.2793]
[1734384770380,0.17844976,105680.0,105660.0,0.2793]
[1734384771694,0.30442885,105680.0,105660.0,0.2793]
[1734384772342,0.47240097,105680.0,105660.0,0.2793]
[1734384773320,0.68236612,105680.0,105660.0,0.2793]
[1734384774391,0.08398606,105670.0,105660.0,0.2793]
[1734384774590,0.17866059,105670.0,105660.0,0.2793]
[1734384775590,0.30521542,105670.0,105660.0,0.2793]
[1734384776413,0.4739552,105670.0,105660.0,0.2793]
[1734384777240,0.68487992,105670.0,105660.0,0.2793]
[1734384778446,0.4739552,105670.0,105660.0,0.2793]
[1734384779065,0.4739552,105670.0,105660.0,0.2793865]
[1734384779410,0.68487992,105670.0,105660.0,0.2793865]
[1734384779971,0.4739552,105670.0,105660.0,0.2793865]
[1734384780316,0.68487992,105670.0,105660.0,0.2793865]
[1734384780515,0.17866059,105670.0,105660.0,0.2793865]
[1734384780716,0.68606476,105670.0,105660.0,0.2793865]
[1734384780939,0.30563858,105670.0,105660.0,0.04789393]
[1734384783436,0.17882985,105670.0,105660.0,8.65e-05]
[1734384787714,0.17882985,105670.0,105660.0,0.42624092]
[1734384787929,0.21152088,105680.0,105670.0,0.15]
[1734384788146,0.21152088,105680.0,105670.0,1.52655661]
[1734384788147,0.0944637,105680.0,105670.0,1.52655661]
[1734384788559,0.0944637,105680.0,105670.0,0.34167261]
[1734384788745,0.0944637,105680.0,105670.0,0.83187261]
[1734384790482,0.0944637,105680.0,105670.0,0.69570861]
[1734384790689,0.0944637,105680.0,105670.0,0.46511561]
[1734384790895,0.0944637,105680.0,105670.0,0.34167261]
[1734384791332,0.0944637,105680.0,105670.0,0.11214443]
[1734384791975,0.0944637,105680.0,105660.0,0.16330534]
[1734384792843,0.0944637,105680.0,105660.0,0.17915522]
[1734384794377,0.0944637,105680.0,105660.0,0.21485522]
[1734384794591,0.0944637,105680.0,105660.0,0.21390899]
[1734384795526,0.0944637,105680.0,105670.0,0.260917]
[1734384795729,0.0944637,105680.0,105670.0,0.37418961]
[1734384796164,0.1747637,105680.0,105660.0,0.12920899]
[1734384796407,0.0942907,105670.0,105660.0,8.65e-05]
[1734384796613,0.0942907,105670.0,105660.0,0.26335911]
[1734384796825,0.1242907,105670.0,105660.0,0.26335911]
[1734384797861,0.2044907,105670.0,105660.0,0.26335911]
[1734384798098,0.2044907,105670.0,105660.0,0.1500865]
[1734384799395,0.2044907,105670.0,105660.0,0.26335911]
[1734384801526,0.2890084,105670.0,105660.0,0.26335911]
[1734384802549,0.2890084,105670.0,105660.0,0.1500865]
[1734384802760,0.41578495,105670.0,105660.0,8.65e-05]
[1734384802973,0.46278495,105670.0,105660.0,8.65e-05]
[1734384803180,0.63182036,105670.0,105660.0,8.65e-05]
[1734384803386,0.63182036,105670.0,105660.0,0.11335911]
[1734384803522,0.63182036,105670.0,105660.0,0.26335911]
[1734384805102,0.46278495,105670.0,105660.0,0.26335911]
[1734384806202,0.2890084,105670.0,105660.0,0.37663172]
[1734384806415,0.2088084,105670.0,105660.0,0.37663172]
[1734384807472,0.2088084,105670.0,105660.0,0.26335911]
[1734384808788,0.2088084,105670.0,105660.0,0.37663172]
[1734384811111,0.2088084,105670.0,105660.0,0.41233172]
[1734384811352,0.03,105670.0,105660.0,0.41233172]
[1734384811609,0.21146725,105680.0,105660.0,0.73335272]
[1734384811813,0.1789814,105680.0,105670.0,0.11327261]
[1734384812019,0.0944637,105680.0,105670.0,0.11327261]
[1734384812231,0.1789814,105680.0,105670.0,0.11327261]
[1734384814222,0.1789814,105680.0,105660.0,0.05127755]
[1734384814423,0.1789814,105680.0,105670.0,0.11327261]
[1734384814785,0.0944637,105680.0,105670.0,0.11327261]
[1734384815446,0.0944637,105680.0,105670.0,0.37654522]
[1734384815658,0.0944637,105680.0,105670.0,0.26327261]
[1734384816073,0.0944637,105680.0,105670.0,0.2986557]
[1734384816730,0.1244637,105680.0,105670.0,0.2986557]
[1734384817158,0.030173,105680.0,105670.0,0.806924]
[1734384817363,0.030173,105680.0,105670.0,1.02990755]
[1734384817575,0.030173,105680.0,105670.0,0.76974155]
[1734384820107,0.030173,105680.0,105670.0,0.77325004]
[1734384820318,0.000173,105680.0,105670.0,1.63577804]
[1734384820946,0.000173,105680.0,105670.0,1.67147804]
[1734384822393,0.000173,105680.0,105670.0,0.68247004]
[1734384824065,0.000173,105680.0,105670.0,0.39569602]
[1734384824271,0.000173,105680.0,105670.0,0.45609002]
[1734384824484,0.000173,105680.0,105670.0,0.56933604]
[1734384825754,0.000173,105680.0,105670.0,0.45609002]
[1734384829016,0.000173,105680.0,105670.0,0.56933604]
[1734384830436,0.000173,105680.0,105670.0,0.28234477]
[1734384831000,0.000173,105680.0,105670.0,1.88247004]
[1734384832571,0.000173,105680.0,105670.0,2.03247004]
[1734384834514,0.000173,105680.0,105670.0,2.73276074]
[1734384834715,0.000173,105680.0,105670.0,2.75011924]
[1734384834901,0.000173,105680.0,105670.0,2.83485515]
[1734384835112,0.000173,105680.0,105670.0,2.81749665]
[1734384835664,0.000173,105680.0,105670.0,3.31749665]
[1734384835866,0.000173,105680.0,105670.0,3.46195902]
[1734384836502,0.000173,105680.0,105670.0,3.31749665]
[1734384836832,0.000173,105680.0,105670.0,2.22329225]
[1734384837061,0.000173,105680.0,105670.0,2.35253225]
[1734384837615,0.000173,105680.0,105670.0,2.26779634]
[1734384839891,0.000173,105680.0,105670.0,2.12250234]
[1734384840140,0.000173,105680.0,105670.0,1.62250234]
[1734384840390,0.000173,105680.0,105670.0,1.57520234]
[1734384841452,0.000173,105680.0,105670.0,2.07520234]
[1734384841666,0.000173,105680.0,105670.0,1.57520234]
[1734384841909,0.000173,105680.0,105670.0,1.54543734]
[1734384842545,0.000173,105680.0,105670.0,1.40919132]
[1734384842770,0.075473,105680.0,105670.0,0.26333232]
[1734384842980,0.075473,105680.0,105670.0,0.81683132]
[1734384843405,0.07483322,105680.0,105670.0,0.81683132]
[1734384843614,0.07483322,105680.0,105670.0,0.93007734]
[1734384844037,0.07483322,105680.0,105670.0,0.81683132]
[1734384844382,0.07483322,105680.0,105670.0,0.68733732]
[1734384844583,0.07483322,105680.0,105670.0,0.65145832]
[1734384844809,0.07483322,105680.0,105670.0,0.63088932]
[1734384848253,0.07483322,105680.0,105670.0,0.74413534]
[1734384849030,0.07500582,105680.0,105670.0,0.74413534]
[1734384849186,0.07500582,105680.0,105670.0,0.63088932]
[1734384849411,0.07500582,105680.0,105670.0,0.74413534]
[1734384849609,0.21469652,105680.0,105670.0,0.26333232]
[1734384850907,0.21469652,105680.0,105670.0,0.11333232]
[1734384852223,0.21469652,105680.0,105670.0,0.26324602]
[1734384853898,0.08,105670.0,105660.0,0.01304922]
[1734384854103,0.08,105670.0,105660.0,0.38954126]
[1734384854311,0.08,105670.0,105660.0,0.37649204]
[1734384855759,0.08,105670.0,105660.0,0.60884004]
[1734384857222,0.1271726,105680.0,105660.0,0.60884004]
[1734384857426,0.1271726,105680.0,105670.0,0.96972423]
[1734384857628,0.1271726,105680.0,105670.0,0.74436302]
[1734384861414,0.0817726,105680.0,105670.0,0.74436302]
[1734384865258,0.0817726,105680.0,105670.0,0.26324602]
[1734384865905,0.1760633,105680.0,105670.0,0.26324602]
[1734384866115,0.2259633,105680.0,105670.0,0.26324602]
[1734384866555,0.2259633,105680.0,105670.0,0.27654556]
[1734384870778,0.2259633,105680.0,105670.0,0.16329954]
[1734384871408,0.2259633,105680.0,105670.0,0.16279954]
[1734384874101,0.2259633,105680.0,105670.0,0.23765867]
[1734384876970,0.2259633,105680.0,105660.0,0.22444543]
[1734384877187,0.1725907,105670.0,105660.0,0.22444543]
[1734384878217,0.0783,105670.0,105660.0,1.85867156]
[1734384878411,0.0783,105670.0,105660.0,1.56249456]
[1734384880719,0.0783,105670.0,105660.0,1.00506256]
[1734384880894,0.0783,105670.0,105660.0,0.91541097]
[1734384883033,0.0783,105670.0,105660.0,0.65132497]
[1734384883274,0.0783,105670.0,105660.0,0.31185897]
[1734384883494,0.0783,105670.0,105660.0,0.43416197]
[1734384883955,0.0783,105670.0,105660.0,0.43415119]
[1734384888393,0.0783,105670.0,105660.0,0.31184819]
[1734384888602,0.0783,105670.0,105660.0,0.73932019]
[1734384889019,0.0783,105670.0,105660.0,0.58684319]
[1734384890017,0.0783,105670.0,105660.0,0.67170062]
[1734384890394,0.0783,105670.0,105660.0,0.52535662]
[1734384890624,0.1725907,105670.0,105660.0,0.16314071]
[1734384890793,0.2191907,105670.0,105660.0,0.01314071]
[1734384891023,0.2191907,105670.0,105660.0,0.08749445]
[1734384892824,0.2191907,105670.0,105660.0,0.23749445]
[1734384895369,0.2193633,105670.0,105660.0,0.23749445]
[1734384896189,0.2188633,105670.0,105660.0,0.23749445]
[1734384898212,0.2188633,105670.0,105660.0,8.63e-05]
[1734384898839,0.3035268,105670.0,105660.0,8.63e-05]
[1734384899278,0.30352784,105670.0,105660.0,8.63e-05]
[1734384900063,0.30352784,105670.0,105660.0,0.07444004]
[1734384900261,0.30352784,105670.0,105660.0,0.22444004]
[1734384900669,0.30352784,105670.0,105660.0,0.29879378]
[1734384901212,0.2188633,105670.0,105660.0,0.29879378]
[1734384904906,0.2188633,105670.0,105660.0,0.07444004]
[1734384908883,0.2188633,105670.0,105660.0,0.29879378]
[1734384911084,0.2188633,105670.0,105660.0,8.63e-05]
[1734384911338,0.30345626,105670.0,105660.0,0.29879378]
[1734384911569,0.46034571,105670.0,105660.0,0.29879378]
[1734384912019,0.84107759,105670.0,105660.0,0.29879378]
[1734384912218,0.84146097,105670.0,105660.0,0.29879378]
[1734384912344,0.45860532,105670.0,105660.0,0.14870748]
[1734384914022,0.33162011,105670.0,105660.0,0.14870748]
[1734384914474,0.33162011,105670.0,105660.0,0.29870748]
[1734384914698,0.2469633,105670.0,105660.0,0.29870748]
[1734384917073,0.2469633,105670.0,105660.0,0.15]
[1734384917292,0.0765,105660.0,105650.0,0.00068628]
[1734384917509,0.1707907,105660.0,105650.0,0.00068628]
[1734384919694,0.1707907,105660.0,105650.0,0.29939376]
[1734384925864,0.0765,105660.0,105650.0,0.3737475]
[1734384926073,0.24102515,105670.0,105650.0,0.3737475]
[1734384926281,0.33531585,105670.0,105660.0,0.37306122]
[1734384927241,0.33531585,105670.0,105660.0,0.29870748]
[1734384930124,0.33531585,105670.0,105660.0,0.29879378]
[1734384930377,0.2040633,105670.0,105660.0,0.29879378]
[1734384930924,0.2040633,105670.0,105660.0,0.37314752]
[1734384932623,0.2040633,105670.0,105660.0,0.39376222]
[1734384932862,0.0301726,105670.0,105660.0,0.39376222]
[1734384933268,0.0301726,105670.0,105660.0,4.28298458]
[1734384933477,0.0001726,105670.0,105660.0,1.72008422]
[1734384935125,0.0001726,105670.0,105660.0,1.35482422]
[1734384936430,0.0001726,105670.0,105660.0,1.44068658]
[1734384937298,0.0001726,105670.0,105660.0,1.43972422]
[1734384938180,0.0001726,105670.0,105660.0,1.52456465]
[1734384938383,0.0001726,105670.0,105660.0,1.43972422]
[1734384938770,0.0001726,105670.0,105660.0,1.52456465]
[1734384941419,0.0001726,105670.0,105660.0,0.56350265]
[1734384941656,0.0001726,105670.0,105660.0,3.55021993]
[1734384941879,0.0001726,105670.0,105660.0,4.47442209]
[1734384942090,0.0001726,105670.0,105660.0,4.34716144]
[1734384942301,0.0001726,105670.0,105660.0,4.474326]
[1734384942516,0.0001726,105670.0,105660.0,4.34716144]
[1734384942755,0.0001726,105670.0,105660.0,4.4742633]
[1734384942960,0.0001726,105670.0,105660.0,4.34716144]
[1734384943356,0.0001726,105670.0,105660.0,4.4742123]
[1734384945333,0.0001726,105670.0,105660.0,4.55888054]
[1734384945547,0.0001726,105670.0,105660.0,4.34677946]
[1734384946240,0.0001726,105670.0,105660.0,4.4742123]
[1734384946455,0.0001726,105670.0,105660.0,4.34673619]
[1734384946888,0.0001726,105670.0,105660.0,4.36174672]
[1734384947751,0.0001726,105670.0,105660.0,4.05513376]
[1734384948501,0.0001726,105680.0,105670.0,1.33644744]
[1734384948747,0.0001726,105680.0,105670.0,5.37147414]
[1734384948953,0.0001726,105680.0,105670.0,5.34288314]
[1734384949879,0.0001726,105680.0,105670.0,5.49288314]
[1734384950142,0.0001726,105680.0,105670.0,5.47902714]
[1734384950408,0.0001726,105680.0,105670.0,5.41932114]
[1734384950643,0.0001726,105680.0,105670.0,5.39662014]
[1734384951409,0.0001726,105680.0,105670.0,5.35607914]
[1734384951916,0.0001726,105680.0,105670.0,4.93970114]
[1734384952181,0.0001726,105680.0,105670.0,1.58073814]
[1734384952436,0.0001726,105680.0,105670.0,4.50460014]
[1734384952966,0.0001726,105680.0,105670.0,4.36968814]
[1734384953965,0.0001726,105680.0,105670.0,4.40748414]
[1734384961821,0.0001726,105680.0,105670.0,4.40748414]
[1734384962062,0.0001726,105680.0,105670.0,4.41029279]
[1734384962550,0.0001726,105680.0,105670.0,4.37359279]
[1734384962785,0.0001726,105680.0,105670.0,4.23660879]
[1734384962999,0.0001726,105680.0,105670.0,4.16673379]
[1734384963214,0.0001726,105680.0,105670.0,3.80748679]
[1734384963889,0.0001726,105680.0,105670.0,3.90748679]
[1734384964992,0.0001726,105680.0,105670.0,3.90757309]
[1734384967965,0.1280728,105700.0,105680.0,0.5]
[1734384968182,0.1280728,105700.0,105690.0,2.68103018]
[1734384968404,0.0811728,105700.0,105690.0,3.27437492]
[1734384969502,0.08128012,105700.0,105690.0,3.27437492]
[1734384970409,0.08128012,105700.0,105690.0,3.77437492]
[1734384970632,0.0476,105720.0,105710.0,0.15]
[1734384970858,0.0476,105720.0,105710.0,3.37077377]
[1734384971104,0.0463,105730.0,105710.0,3.37355294]
[1734384971320,0.0463,105730.0,105720.0,1.980938]
[1734384971583,0.0463,105730.0,105720.0,2.00243654]
[1734384971799,0.0463,105730.0,105720.0,1.65888554]
[1734384972250,0.0463,105730.0,105720.0,1.88194676]
[1734384972897,0.0463,105730.0,105720.0,1.90494676]
[1734384973113,0.0463,105750.0,105730.0,0.15]
[1734384973326,0.0463,105750.0,105720.0,0.86185046]
[1734384973327,0.0463,105750.0,105740.0,0.39060273]
[1734384973544,0.0463,105750.0,105740.0,0.38965716]
[1734384973770,0.1219,105750.0,105740.0,0.38965716]
[1734384974223,0.1219,105750.0,105740.0,0.49731716]
[1734384974660,0.1219,105750.0,105740.0,0.48072122]
[1734384976664,0.0757726,105750.0,105740.0,1.09801192]
[1734384976876,0.0001726,105750.0,105740.0,1.60108652]
[1734384977739,0.0001726,105750.0,105740.0,1.61751671]
[1734384978217,0.0001726,105750.0,105740.0,1.62057523]
[1734384981065,0.0001726,105750.0,105740.0,1.00444076]
[1734384981278,0.0001726,105750.0,105740.0,1.11750063]
[1734384982664,0.0827726,105750.0,105740.0,0.52320993]
[1734384982888,0.0827726,105750.0,105740.0,1.02320993]
[1734384983525,0.0827726,105750.0,105740.0,1.02452011]
[1734384983740,0.0827726,105750.0,105740.0,0.91686011]
[1734384983952,0.0827726,105750.0,105740.0,3.36824211]
[1734384984167,0.0827726,105750.0,105740.0,2.92723211]
[1734384985462,0.0827726,105750.0,105740.0,2.00571411]
[1734384986824,0.1290726,105750.0,105740.0,0.54942506]
[1734384987033,0.1290726,105750.0,105740.0,0.66248493]
[1734384988611,0.1290726,105750.0,105740.0,0.66350323]
[1734384993098,0.1290726,105750.0,105740.0,0.66248493]
[1734384994461,0.1290726,105750.0,105740.0,0.39254993]
[1734384994715,0.1290726,105750.0,105740.0,1.47916337]
[1734384994974,0.1290726,105750.0,105740.0,1.42607737]
[1734384995229,0.1290726,105750.0,105740.0,1.17167937]
[1734384996204,0.1290726,105750.0,105740.0,1.1889175]
[1734384996440,0.1290726,105750.0,105740.0,1.18809618]
[1734384997184,0.1290726,105750.0,105740.0,0.38784268]
[1734384997660,0.1290726,105750.0,105740.0,0.50090255]
[1734384998142,0.1290726,105750.0,105740.0,0.49744302]
[1734385004924,0.1290726,105750.0,105740.0,0.38907702]
[1734385005142,0.1290726,105750.0,105740.0,1.30479102]
[1734385006021,0.1290726,105750.0,105740.0,0.54147002]
[1734385006693,0.1290726,105750.0,105740.0,0.54202268]
[1734385007177,0.0827726,105750.0,105740.0,0.54202268]
[1734385008275,0.0001726,105750.0,105740.0,1.15931338]
[1734385010339,0.0001726,105750.0,105740.0,0.65931338]
[1734385010788,0.0001726,105750.0,105740.0,1.15931338]
[1734385010998,0.0001726,105750.0,105740.0,0.65931338]
[1734385011441,0.0001726,105750.0,105740.0,1.15931338]
[1734385011877,0.0001726,105750.0,105740.0,1.19708738]
[1734385012994,0.0001726,105750.0,105740.0,1.19717368]
[1734385015664,0.0001726,105750.0,105740.0,1.28171647]
[1734385016637,0.0001726,105750.0,105740.0,1.40853065]
[1734385017296,0.0001726,105750.0,105740.0,1.42522323]
[1734385017744,0.0001726,105750.0,105740.0,3.99609923]
[1734385018188,0.0001726,105750.0,105740.0,3.93103423]
[1734385018409,0.0001726,105750.0,105740.0,3.53922023]
[1734385018632,0.0001726,105750.0,105740.0,3.29814123]
[1734385018854,0.0001726,105750.0,105740.0,2.55756623]
[1734385019076,0.0827726,105750.0,105740.0,2.10513523]
[1734385019571,0.0827726,105750.0,105740.0,2.3164922]
[1734385022517,0.0827726,105750.0,105740.0,2.23194941]
[1734385023016,0.0827726,105750.0,105740.0,2.31674597]
[1734385023694,0.0827726,105750.0,105740.0,2.23194941]
[1734385024801,0.0827726,105750.0,105740.0,2.33194941]
[1734385025698,0.0827726,105750.0,105740.0,2.33357121]
[1734385026810,0.0827726,105750.0,105740.0,1.82469268]
[1734385027519,0.0824376,105750.0,105740.0,1.82469268]
[1734385027757,0.0824376,105750.0,105740.0,2.33360545]
[1734385027758,0.08235281,105750.0,105740.0,2.33360545]